[Event "71st Greek Championship 2022"]
[Site "Athens"]
[Date "2022.12.09"]
[Round "7.1"]
[White "Marinakis, Hristos"]
[Black "Skembris, Spyridon"]
[Result "0-1"]
[ECO "B38"]
[WhiteElo "2118"]
[BlackElo "2381"]
[Annotator "TA"]
[PlyCount "61"]
[EventDate "2022.12.04"]
[EventType "tourn"]
[EventCountry "GRE"]
[SourceTitle "playchess.com"]
[Source "ChessBase"]
[SourceQuality "1"]
[TimeControl "40/5400+30:1800+30"]

{[%evp 18,61,66,66,66,49,68,68,69,67,68,73,81,79,86,33,47,43,56,49,44,0,14,0,50,1,0,-29,-20,-118,-101,-144,-112,-270,-277,-281,-153,-380,-372,-431,-447,-440,-401,-448,-441,-453]} 1. e4 {[%emt 0:00:04]} c5 {[%emt 0:00:35]} 2. Nf3 {[%emt 0:00:07]} Nc6 {[%emt 0:00:15]} 3. d4 {[%emt 0:00:06]} cxd4 {[%emt 0:00:08]} 4. Nxd4 {[%emt 0:00:04]} g6 {[%emt 0:01:17]} 5. c4 {[%emt 0:01:02]} Bg7 {[%emt 0:00:09]} 6. Be3 {[%emt 0:00:05]} Nf6 {[%emt 0:00:17]} 7. Nc3 {[%emt 0:00:26]} O-O {[%emt 0:00:10]} 8. Be2 {[%emt 0:00:42]} b6 {[%emt 0:01:40]} 9. Qd2 {[%emt 0:08:45]} Bb7 {[%emt 0:00:44]} 10. f3 {[%emt 0:00:45]} Rc8 {[%emt 0:04:16] B38: Sicilian: Maroczy Bind with 5...Bg7 and 7...0-0.} 11. b3 {[%emt 0:14:03]} d6 {[%emt 0:00:42] [#]} 12. O-O-O $146 {[%emt 0:04:49]} ({Predecessor:} 12. Nc2 Re8 13. O-O Qc7 14. Rac1 Qb8 15. Bh6 Bh8 16. Ne3 Ne5 17. f4 Ned7 18. Bf3 {½-½ (41) Prochazka,D (2178)-Znamenacek,K (2289) Prague 2014}) 12... a6 {[%emt 0:04:52][%cal Ob6b5] White is slightly better.} 13. Kb1 {[%emt 0:08:59]} Qc7 {[%emt 0:17:51]} 14. Rc1 {[%emt 0:09:15]} Nxd4 {[%emt 0:06:39]} 15. Bxd4 {[%emt 0:00:05]} Nd7 {[%emt 0:06:22]} 16. h4 {[%emt 0:08:14]} (16. Bxg7 $16 Kxg7 17. h4 (17. Nd5 Bxd5 18. cxd5 Qb7 $14)) 16... Bxd4 $14 {[%emt 0:02:48]} 17. Qxd4 {[%emt 0:00:03]} Qc5 {[%emt 0:00:13]} 18. Qd2 {[%emt 0:00:36]} Qe5 {[%emt 0:04:54]} 19. Bd3 {[%emt 0:10:38][%cal Oh4h5]} Nc5 {[%emt 0:03:12]} 20. Bc2 {[%emt 0:00:09][%cal Oh4h5]} (20. h5 {feels hotter.} Qd4 21. Rcd1 b5 22. hxg6 fxg6 23. Qh6) 20... Ne6 {[%emt 0:02:22]} (20... b5 $11) 21. Ne2 {[%emt 0:00:36]} (21. Nd5 $14 Bxd5 22. exd5) 21... b5 $11 {[%emt 0:02:47]} 22. f4 {[%emt 0:01:11]} Qf6 {[%emt 0:04:18]} 23. g4 {[%emt 0:09:27]} (23. cxb5 $1 $11 axb5 24. h5) 23... bxc4 $17 {[%emt 0:01:52] Black is more active.} 24. g5 {[%emt 0:00:12]} Qg7 {[%emt 0:01:20]} 25. f5 $2 {[%emt 0:00:14]} (25. h5 $17) 25... cxb3 $19 {[%emt 0:01:26]} 26. axb3 {[%emt 0:00:12] [#]} Nc5 {[%emt 0:02:10] Dancing on a razor blade.} ({Not} 26... gxf5 27. exf5 Bxh1 28. Rxh1 $17) ({Better is} 26... Rxc2 $1 $19 {[%mdl 512]} 27. Qxc2 {[#]} Qe5 $1) 27. f6 $2 {[%emt 0:13:35] This move loses the game for White.} (27. Qf4 $17 {only move.}) 27... exf6 {[%emt 0:00:24]} 28. Ng3 fxg5 {[%emt 0:02:53]} 29. hxg5 {[%emt 0:01:36]} Rfe8 {[%emt 0:04:07]} 30. Rh4 {[%emt 0:01:12]} Qe5 {[%emt 0:02:09]} 31. Rch1 {[%emt 0:02:39] Weighted Error Value: White=0.48/Black=0.16 (very precise)} 0-1

[Event "71st Greek Championship 2022"]
[Site "Athens"]
[Date "2022.12.09"]
[Round "7.2"]
[White "Alexakis, Dimitris"]
[Black "Trimitzios, Petros"]
[Result "1/2-1/2"]
[ECO "C28"]
[WhiteElo "2486"]
[BlackElo "2358"]
[Annotator "TA"]
[PlyCount "80"]
[EventDate "2022.12.04"]
[EventType "tourn"]
[EventCountry "GRE"]
[SourceTitle "playchess.com"]
[Source "ChessBase"]
[SourceQuality "1"]
[TimeControl "40/5400+30:1800+30"]

{[%evp 12,80,25,-6,11,4,27,18,20,0,0,0,0,0,0,0,0,0,0,0,17,0,16,15,0,7,17,23,57,47,85,85,97,97,98,103,102,96,218,78,105,76,154,-80,0,0,0,0,70,70,72,72,77,81,85,0,0,0,0,0,0,0,0,0,0,0,0,0,0,0,0]} 1. e4 {[%emt 0:01:59]} e5 {[%emt 0:00:12]} 2. Nc3 {[%emt 0:00:59]} Nc6 {[%emt 0:00:33]} 3. Bc4 {[%emt 0:00:31]} Nf6 {[%emt 0:00:31]} 4. d3 {[%emt 0:00:09]} Na5 {[%emt 0:01:45]} 5. Nge2 {[%emt 0:05:25]} Nxc4 {[%emt 0:04:19]} 6. dxc4 {[%emt 0:00:05]} Bc5 {[%emt 0:00:19]} 7. h3 {[%emt 0:09:06]} h6 {[%emt 0:01:40] C28: Vienna Game: 2...Nf6 3 Bc4 Nc6.} 8. Qd3 {[%emt 0:03:38] [#]} Qe7 $146 {[%emt 0:10:11]} ({Predecessor:} 8... d6 9. Be3 Bxe3 10. Qxe3 Be6 11. b3 c6 12. O-O Qb6 13. Qg3 O-O 14. Rad1 Rad8 15. Kh1 {1-0 (74) Nakamura,H (2745)-Duda,J (2730) Chess.com INT 2019}) 9. g4 {[%emt 0:03:37]} d6 {[%emt 0:07:19]} 10. g5 {[%emt 0:08:26]} (10. Be3 {simplifies} Bxe3 11. Qxe3 Be6 12. b3) 10... hxg5 {[%emt 0:09:13]} 11. Bxg5 {[%emt 0:02:45]} Be6 {[%emt 0:01:23]} 12. f4 {[%emt 0:21:37]} exf4 {[%emt 0:08:25]} 13. Nxf4 {[%emt 0:00:40]} c6 {[%emt 0:00:16]} 14. O-O-O {[%emt 0:05:24][%cal Of4d5]} O-O-O {[%emt 0:07:05]} 15. a3 {[%emt 0:06:47]} Bb6 {[%emt 0:14:09]} 16. Kb1 {[%emt 0:12:15]} Bc7 {[%emt 0:03:31]} 17. Nfe2 {[%emt 0:06:33][%cal Bf4e2,Be2d4,Bd4f5][%mdl 32]} Bd7 {[%emt 0:03:03]} 18. Nd4 {[%emt 0:00:39]} Rde8 {[%emt 0:03:25]} 19. Nf5 {[%emt 0:04:53]} Qe5 {[%emt 0:02:31][%cal Rf6e4]} (19... Bxf5 {simplifies} 20. exf5 Qe5 21. h4 Nd7) 20. Rhf1 $1 {[%emt 0:00:38] Hoping for Bf4.} Nxe4 {[%emt 0:04:23]} 21. Nxe4 {[%emt 0:00:27]} Bxf5 {[%emt 0:00:07]} 22. Nxd6+ {[%emt 0:02:17]} Qxd6 {[%emt 0:00:30]} 23. Qxf5+ {[%emt 0:00:07]} ({And not} 23. Rxf5 Qxd3 24. Rxd3 Rh5 25. Rxf7 Rxg5 $19) 23... Qe6 {[%emt 0:00:06]} 24. Qxf7 {[%emt 0:01:13]} Qxh3 {[%emt 0:00:51]} (24... Qxf7 $16 {was necessary.} 25. Rxf7 Ref8 26. Rxg7 Rxh3) 25. Qxg7 {[%emt 0:02:08]} (25. Rf5 $1 $18) 25... Reg8 {[%emt 0:01:24]} 26. Qe7 {[%emt 0:00:29] Rf7 would kill now. White has more active pieces.} Bd8 {[%emt 0:01:30] [#]} (26... Qg4 $142) 27. Rxd8+ $2 {[%emt 0:00:10]} Rxd8 $11 {[%emt 0:00:02]} 28. Rf7 {[%emt 0:00:16][%csl Gf7][%cal Re7b7]} Qd7 {[%emt 0:01:50]} 29. Qf6 {[%emt 0:00:04]} Qd6 {[%emt 0:01:31]} (29... Qd1+ $1 $11 30. Ka2 Rhe8) 30. Qf5+ $14 {[%emt 0:01:29][%mdl 1024] White has compensation.} Rd7 {[%emt 0:00:18] [#]} 31. Bf4 $1 {[%emt 0:00:30]} Qd1+ {[%emt 0:01:28]} 32. Ka2 {[%emt 0:00:01] Strongly threatening Rxd7.} Re8 {[%emt 0:00:11] [#]} 33. Rf8 $40 {[%emt 0:01:10][%mdl 128] White has some attack. Chess con chili.} ({White should try} 33. Re7 $1 $16 {[%cal Re7e8]} Kd8 34. Rxe8+ Kxe8 35. Qg6+ Ke7 36. Qg7+ Ke6 37. Qg6+ Ke7 38. Bg5+ Kf8 39. Bh6+ Ke7 40. Bg5+ Kf8 41. Bh6+ Ke7 42. Bg5+) 33... Qe2 $11 {[%emt 0:03:16][%cal Oe2e7] The position is equal.} 34. Kb3 {[%emt 0:00:11]} Qe7 {[%emt 0:01:05]} 35. Rf6 {[%emt 0:00:44]} Qe4 {[%emt 0:01:28]} 36. Qc5 {[%emt 0:00:29]} Qd4 {[%emt 0:01:03]} 37. Qf5 {[%emt 0:00:27]} Qb6+ {[%emt 0:00:55]} ({Much less strong is} 37... Red8 38. Re6 $16) 38. Ka2 {[%emt 0:00:04]} Qd4 {[%emt 0:00:07]} 39. Kb3 {[%emt 0:00:54]} Qb6+ {[%emt 0:00:08]} ({Resist} 39... Red8 40. Qe6 $16) 40. Ka2 {[%emt 0:00:00] Rd6 is the strong threat.} Qd4 $1 {[%emt 0:00:00] Weighted Error Value: White=0.23 (precise) /Black=0.16 (very precise)} 1/2-1/2

[Event "71st Greek Championship 2022"]
[Site "Athens"]
[Date "2022.12.09"]
[Round "7.3"]
[White "Koutlas, Nikolaos"]
[Black "Mitsis, Georgios"]
[Result "0-1"]
[ECO "C55"]
[WhiteElo "2267"]
[BlackElo "2365"]
[Annotator "TA"]
[PlyCount "69"]
[EventDate "2022.12.04"]
[EventType "tourn"]
[EventCountry "GRE"]
[SourceTitle "playchess.com"]
[Source "ChessBase"]
[SourceQuality "1"]
[TimeControl "40/5400+30:1800+30"]

{[%evp 12,69,11,12,17,17,41,25,33,36,45,35,29,33,29,30,41,45,59,46,64,34,32,31,44,19,26,0,66,16,19,-16,-18,-29,23,0,6,0,0,0,0,0,0,0,46,0,0,-495,-465,-722,-720,-714,-714,-692,-676,-645,-531,-623,-587,-964]} 1. e4 {[%emt 0:05:43]} e5 {[%emt 0:06:02]} 2. Nf3 {[%emt 0:00:56]} Nc6 {[%emt 0:00:55]} 3. Bc4 {[%emt 0:00:00]} Nf6 {[%emt 0:00:25]} 4. d3 {[%emt 0:00:00]} Be7 {[%emt 0:01:37]} 5. Nc3 {[%emt 0:00:00]} d6 {[%emt 0:01:23]} 6. a3 O-O {[%emt 0:00:27]} 7. O-O {[%emt 0:00:00]} Be6 {[%emt 0:04:57] 7...Be6 is a critical line. C55: Two Knights: 4 d3, 4 d4 exd4 5 e5 and Max Lange Attack.} 8. Nd5 {[%emt 0:00:00]} h6 {[%emt 0:01:54]} (8... a5 {simplifies} 9. Nxf6+ Bxf6 10. Bxe6 fxe6 11. a4 d5) 9. b4 {[%emt 0:00:00] [#]} a6 $146 {[%emt 0:00:23] White has an edge.} ({Predecessor:} 9... Nb8 10. Bb2 c6 11. Nxf6+ Bxf6 12. Bxe6 fxe6 13. d4 exd4 14. Bxd4 e5 15. Bb2 Na6 {0-1 (54) Jamrich,G (2230)-Sinkovics,P (2405) Hungary 1996}) 10. Re1 {[%emt 0:02:33]} b5 {[%emt 0:04:17]} 11. Nxf6+ {[%emt 0:02:52]} Bxf6 {[%emt 0:03:06]} 12. Bxe6 fxe6 13. Bd2 Qd7 14. a4 Ne7 15. Ra3 Ng6 16. Qa1 Rab8 17. axb5 axb5 18. Be3 Kh7 {[%emt 0:00:39]} 19. g3 {[%emt 0:24:30]} Qf7 {[%emt 0:13:14]} (19... Be7 $11 20. Kg2 d5) 20. Rf1 {[%emt 0:06:55]} (20. Kg2 $14) 20... Be7 $11 {[%emt 0:01:40]} 21. Nd2 {[%emt 0:01:19]} d5 {[%emt 0:08:27] [#] Threatens to win with ...d4.} 22. c3 {[%emt 0:06:45]} Rfd8 {[%emt 0:13:00]} (22... Rbd8 $142 23. Qb2 dxe4) 23. Ra7 {[%emt 0:04:57]} Bd6 {[%emt 0:00:28]} (23... d4 $5 24. cxd4 exd4 25. Bxd4 Bxb4 $11) 24. d4 {[%emt 0:06:36]} exd4 {[%emt 0:01:26]} 25. Bxd4 {[%emt 0:00:00]} e5 {[%emt 0:00:46] Inhibits f4.} 26. Be3 {[%emt 0:00:07]} d4 {[%emt 0:06:24]} 27. cxd4 {[%emt 0:00:08]} Bxb4 {[%emt 0:00:06]} (27... exd4 $11 28. Qxd4 Qe7) 28. Rc1 {[%emt 0:01:24]} (28. d5 $14 {might be stronger.}) 28... Rd7 {[%emt 0:11:35] Hoping for ...exd4.} 29. Qb2 {[%emt 0:08:11][%mdl 8192]} (29. d5 $11 {and White is okay.}) 29... exd4 $1 $19 {[%emt 0:01:02] Black is clearly winning.} 30. Qxb4 {[%emt 0:08:42]} (30. Bxd4 $142 Bxd2 31. Qxd2) 30... dxe3 {[%emt 0:00:08][%mdl 64] [#] Discovered Attack} 31. fxe3 {[%emt 0:00:04]} Ne5 {[%emt 0:00:27] Strongly threatening ...Rbd8.} ({Weaker is} 31... Rf8 32. Rf1 Qe8 33. Rxf8 Qxf8 34. Qxf8 Nxf8 35. Nf3 $15) 32. Rf1 {[%emt 0:02:07]} Qh5 {[%emt 0:00:16]} 33. Ra2 {[%emt 0:03:06]} Qe2 {[%emt 0:00:36][%cal Ob8d8] ...Rbd8! is the strong threat.} 34. Qc5 {[%emt 0:00:37]} Re8 {[%emt 0:01:19]} ({And not} 34... Rxd2 35. Rxd2 Qxd2 36. Qxe5 $17) 35. Rf2 {[%emt 0:00:35] Weighted Error Value: White=0.56/Black=0.16 (very precise)} 0-1

[Event "71st Greek Championship 2022"]
[Site "Athens"]
[Date "2022.12.09"]
[Round "7.4"]
[White "Alexiadis, Hristos"]
[Black "Naoum, Spyridon"]
[Result "1-0"]
[ECO "A48"]
[WhiteElo "2342"]
[BlackElo "2352"]
[Annotator "TA"]
[PlyCount "73"]
[EventDate "2022.12.04"]
[EventType "tourn"]
[EventCountry "GRE"]
[SourceTitle "playchess.com"]
[Source "ChessBase"]
[SourceQuality "1"]
[TimeControl "40/5400+30:1800+30"]

{[%evp 19,73,0,0,0,0,0,0,-3,16,-2,22,23,25,30,114,98,168,172,444,419,508,495,654,643,616,595,554,412,637,618,754,756,754,729,749,749,729,714,787,791,781,764,785,782,935,929,1187,1152,1111,1071,1202,1209,1466,1455,1236,876]} 1. d4 {[%emt 0:00:04]} Nf6 {[%emt 0:02:10]} 2. Nf3 {[%emt 0:00:06]} g6 {[%emt 0:00:09]} 3. Bg5 {[%emt 0:00:07]} Bg7 {[%emt 0:03:07]} 4. c3 {[%emt 0:00:44]} O-O {[%emt 0:00:08]} 5. Nbd2 {[%emt 0:00:04]} d6 {[%emt 0:00:40]} 6. e4 {[%emt 0:01:04]} c5 {[%emt 0:00:05]} 7. dxc5 {[%emt 0:00:42]} dxc5 {[%emt 0:00:02]} 8. Qc2 {[%emt 0:01:07]} Nc6 {[%emt 0:00:10]} 9. Be2 {[%emt 0:00:15]} Qc7 {[%emt 0:00:34]} 10. O-O {[%emt 0:00:09]} h6 {[%emt 0:01:04]} 11. Bh4 {[%emt 0:00:05] A48: 1 d4 Nf6 2 Nf3 g6: Torre, London and Colle Systems.} Nh5 {[%emt 0:00:38]} 12. Nc4 {[%emt 0:00:05]} b6 {[%emt 0:04:00]} 13. Rad1 {[%emt 0:01:25] The position is equal.} Bb7 {[%emt 0:11:49]} 14. Rfe1 {[%emt 0:03:41] [#]} a6 $146 {[%emt 0:07:31]} ({Predecessor:} 14... g5 15. Nfd2 Nf4 16. Bg3 e6 17. h4 b5 18. Ne3 a6 19. hxg5 hxg5 20. Nf3 Qe7 {1-0 (64) Papaioannou,I (2606)-Matamoros Franco,C (2548) Istanbul 2012}) 15. a4 {[%emt 0:01:21]} g5 {[%emt 0:04:41]} 16. Bxg5 {[%emt 0:01:23]} hxg5 {[%emt 0:06:26]} (16... b5 $1 $11) 17. e5 $1 $16 {[%emt 0:00:05]} f6 {[%emt 0:14:20] [#]} (17... Bh6 $16) 18. g3 $1 $18 {[%emt 0:00:06] Black must now prevent Qg6.} Qc8 $2 {[%emt 0:23:30]} (18... g4 19. Qf5 gxf3 20. Rd7) (18... e6 {was called for.}) 19. exf6 {[%emt 0:30:04]} (19. Nxb6 Qh3 $18) 19... Rxf6 {[%emt 0:00:10][%cal Oh5f4]} 20. Nxb6 {[%emt 0:04:22]} Qg4 {[%emt 0:16:39][%cal Oh5f4] [#] And now ...Nf4! would win.} 21. Nh4 $1 {[%emt 0:04:16][%mdl 576]} Qh3 {[%emt 0:01:47][%cal Og5h4]} 22. Bf1 {[%emt 0:00:35]} (22. Bxh5 gxh4 23. Nd5 {[#]} Kh8 $1 24. Nxf6 Bxf6 $15) 22... Nf4 {[%emt 0:01:09]} 23. Nxa8 {[%emt 0:02:57]} (23. Bxh3 Nxh3+ 24. Kf1 Rxf2+ 25. Qxf2 Nxf2 26. Kxf2 Rf8+ 27. Kg1 (27. Nf3 Ne5 $11) 27... gxh4 $16) 23... gxh4 {[%emt 0:00:37]} (23... Bxa8 $142 24. Bxh3 Nxh3+ 25. Kf1 Rxf2+ 26. Qxf2 Nxf2) 24. Qb3+ {[%emt 0:04:28] White is clearly winning.} (24. gxf4 $2 {is the wrong capture.} Qg4+ 25. Bg2 Nd4 $19) 24... Kh7 {[%emt 0:00:13]} 25. Bxh3 {[%emt 0:00:35]} Nxh3+ {[%emt 0:00:08]} 26. Kg2 {[%emt 0:00:04]} Na5+ {[%emt 0:01:12] [#]} 27. Qxb7 $3 {[%emt 0:00:12]} Nxb7 {[%emt 0:00:00]} 28. Kxh3 {[%emt 0:00:36]} hxg3 {[%emt 0:00:34]} 29. fxg3 {[%emt 0:00:08]} Nd6 {[%emt 0:00:56]} 30. Re2 {[%emt 0:01:07]} e5 {[%emt 0:00:11]} 31. Nc7 {[%emt 0:00:08]} ({Not} 31. Rxe5 Rh6+ 32. Kg2 Bxe5 $11) 31... e4 {[%emt 0:00:40]} 32. Nxa6 {[%emt 0:00:34]} Bh6 {[%emt 0:00:23]} 33. Nxc5 {[%emt 0:01:51]} e3 {[%emt 0:00:08]} 34. Rd3 {[%emt 0:01:37]} Nf7 {[%emt 0:01:07]} 35. Kg2 {[%emt 0:03:02]} Rf5 {[%emt 0:00:25]} 36. b4 {[%emt 0:00:12]} Ne5 {[%emt 0:00:35]} 37. Rdxe3 {[%emt 0:00:10] White took control after the opening.   Weighted Error Value: White=0.22 (precise) /Black=0.96} 1-0

[Event "71st Greek Championship 2022"]
[Site "Athens"]
[Date "2022.12.09"]
[Round "7.5"]
[White "Markidis, Konstantinos"]
[Black "Moutousis, Konstantinos"]
[Result "1/2-1/2"]
[ECO "C88"]
[WhiteElo "2290"]
[BlackElo "2392"]
[Annotator "TA"]
[PlyCount "99"]
[EventDate "2022.12.04"]
[EventType "tourn"]
[EventCountry "GRE"]
[SourceTitle "playchess.com"]
[Source "ChessBase"]
[SourceQuality "1"]
[TimeControl "40/5400+30:1800+30"]

{[%evp 19,99,1,25,12,12,7,19,30,18,25,30,26,34,37,24,37,43,45,40,36,65,43,32,16,16,0,52,14,14,21,13,17,47,56,79,48,95,100,141,142,137,144,608,594,1040,1010,1498,1498,1437,1427,1441,1381,1192,1158,1002,256,225,154,131,54,60,0,75,8,198,201,204,0,0,0,0,0,0,0,0,0,0,0,0,-29999,29979,-29992]} 1. e4 {[%emt 0:03:28]} e5 {[%emt 0:02:36]} 2. Nf3 {[%emt 0:00:09]} Nc6 {[%emt 0:00:10]} 3. Bb5 {[%emt 0:00:09][%cal Bf1b5,Bb5a4,Ba4b3][%mdl 32]} a6 {[%emt 0:00:30]} 4. Ba4 {[%emt 0:00:09]} Nf6 {[%emt 0:00:13]} 5. O-O {[%emt 0:00:44]} Be7 {[%emt 0:00:58]} 6. Re1 {[%emt 0:00:29]} b5 {[%emt 0:00:17]} 7. Bb3 {[%emt 0:00:08]} O-O {[%emt 0:00:08]} 8. a4 {[%emt 0:01:51]} b4 {[%emt 0:00:05]} 9. d3 {[%emt 0:03:20] 9.d4 is the fancy move.} d6 {[%emt 0:01:03]} 10. a5 {[%emt 0:02:28]} Be6 {[%emt 0:02:08]} 11. Bxe6 {[%emt 0:01:34] C88: Closed Ruy Lopez: Anti-Marshall Systems.} fxe6 {[%emt 0:00:07]} 12. c3 {[%emt 0:00:25] [#]} Qd7 $146 {[%emt 0:04:22]} ({Predecessor:} 12... Rb8 13. Nbd2 Rb5 14. d4 bxc3 15. bxc3 exd4 16. cxd4 Qc8 17. Ba3 Nxa5 18. Qc2 c5 19. e5 dxe5 20. dxc5 Nc6 {½-½ (40) Caruana,F (2842)-Ding,L (2805) Ekaterinburg 2021}) 13. Nbd2 {[%emt 0:07:41][%cal Bb1d2,Bd2c4,Bc4a3,Ba3c2][%mdl 32] The position is equal.} bxc3 {[%emt 0:14:31]} 14. bxc3 {[%emt 0:00:08]} Rab8 {[%emt 0:00:16]} 15. d4 exd4 {[%emt 0:21:34]} 16. cxd4 {[%emt 0:01:46]} Rb5 {[%emt 0:00:13]} 17. Nc4 {[%emt 0:07:27]} h6 {[%emt 0:07:45]} 18. Bd2 {[%emt 0:06:31]} Nh7 {[%emt 0:11:15]} 19. Na3 {[%emt 0:21:59]} Rbb8 {[%emt 0:05:59]} 20. Nc2 {[%emt 0:04:30]} (20. Rc1 $5 {[%cal Rd1a4]}) 20... d5 {[%emt 0:06:28]} 21. Qe2 {[%emt 0:05:45]} Rb2 {[%emt 0:04:51]} 22. Rac1 {[%emt 0:02:31]} (22. Qd3 {is interesting.} Ng5 23. Bxg5 Bxg5 24. Rab1) 22... Rb5 {[%emt 0:02:50]} (22... Nf6 $11) 23. Rb1 {[%emt 0:06:03]} Rfb8 {[%emt 0:00:44]} 24. Rxb5 {[%emt 0:00:21]} Rxb5 {[%emt 0:00:54]} 25. exd5 {[%emt 0:02:45]} exd5 {[%emt 0:00:13]} 26. Ne5 {[%emt 0:01:12]} Nxe5 {[%emt 0:00:27]} 27. dxe5 {[%emt 0:00:35][%cal Bd4e5,Be5e6][%mdl 32] And now Nd4 would win.} (27. Qxe5 Bd6 28. Qe2 Nf6 $15) 27... c5 {[%emt 0:01:04] Inhibits Nd4.} (27... Bc5 $14 {should be considered.}) 28. e6 $16 {[%emt 0:00:45]} Qc6 {[%emt 0:01:35]} 29. Qh5 {[%emt 0:01:20]} Rb7 {[%emt 0:00:53]} 30. Ne3 $1 $36 {[%emt 0:00:34][%mdl 2048] White is in control. White is much more active.} Ng5 {[%emt 0:06:00][%mdl 8192] Inhibits Qf7+.} (30... Qxe6 $16 31. Nxd5 Qf7 32. Nxe7+ Rxe7 33. Qxc5 Rxe1+ 34. Bxe1 Nf6 35. Qc8+ Qe8 36. Qc4+ (36. Qxa6 $2 Qxe1+ 37. Qf1 Qxa5 $19) 36... Kh8) 31. Nf5 $18 {[%emt 0:01:02]} Nxe6 {[%emt 0:00:59] [#]} 32. Nxh6+ $1 {[%emt 0:04:58][%mdl 576]} gxh6 {[%emt 0:00:50]} (32... Kh8 33. Qf7) 33. Qg6+ {[%emt 0:00:12]} Kh8 {[%emt 0:00:08]} 34. Qxh6+ {[%emt 0:00:22]} (34. Qxe6 Qxe6 35. Rxe6 Rb1+ 36. Re1 Rxe1+ 37. Bxe1 c4 $17) (34. Rxe6 Rb1+ $1 35. Qxb1 Qxe6 $11) 34... Kg8 {[%emt 0:00:06]} 35. Qg6+ {[%emt 0:01:37]} (35. Qxe6+ Qxe6 36. Rxe6 Rb1+ 37. Re1 Rb7 $11) 35... Kh8 {[%emt 0:00:06]} 36. Re5 {[%emt 0:04:44][%cal Re5h5][%mdl 64]} (36. Qxe6 Qxe6 37. Rxe6 Rb1+ 38. Re1 Rxe1+ 39. Bxe1 d4 $14) 36... Bg5 {[%emt 0:01:11]} 37. Bxg5 $2 {[%emt 0:00:15]} (37. Rxe6 Qxe6 38. Qxe6 Rb1+ 39. Be1) 37... Ng7 {[%emt 0:00:05]} 38. Qd3 {[%emt 0:01:50]} (38. Qxc6 $2 Rb1+) (38. Bf6 $2 Qxf6 $3 {[%mdl 512]} 39. Rh5+ Nxh5 40. Qxh5+ Kg7 $19) 38... c4 {[%emt 0:00:30]} 39. Qd1 {[%emt 0:02:37]} (39. Qxd5 Rb1+) (39. Qc2 $1 $16 {Strongly threatening Re3.} Qa4 40. Qc1 (40. Qxa4 Rb1+)) 39... c3 $1 $14 {[%emt 0:00:08]} 40. Bc1 {[%emt 0:00:00]} (40. Rxd5 $2 Qxd5 $3 {[%mdl 512]} 41. Qf1 Qxg5 $19) (40. Qc2 $14 Rb2 41. Qd3) 40... Rb1 {[%emt 0:00:00] [#]} (40... c2 $1 $11 41. Qd2 (41. Qxd5 $2 Qxd5 42. Rxd5 Rb1 $19) 41... Rb1) 41. Re1 {[%emt 0:03:21]} (41. Qc2 $1 $16 {[%cal Rc2b1]} Ra1 42. Re1 (42. Re7 d4 $11)) 41... Qc4 $2 {[%emt 0:01:41]} (41... c2 $11 42. Qd2 Qc4) 42. Qc2 $18 {[%emt 0:04:37]} Ra1 {[%emt 0:10:58]} 43. Re3 $2 {[%emt 0:03:35] The board is on fire.} (43. h3 $18) 43... d4 $11 {[%emt 0:00:44] Threatens to win with ...d3.} (43... Rxa5 $2 44. Rh3+ (44. Qxc3 Qxc3 45. Rxc3 Kg8 $16) 44... Kg8 45. Qh7+ (45. Qxc3 Ra2 $16) 45... Kf7 46. Rf3+ Ke7 47. Qxg7+ $18) 44. Rh3+ {[%emt 0:00:35]} Kg8 {[%emt 0:00:15] ...d3 is the strong threat.} 45. Qh7+ {[%emt 0:00:06]} Kf7 {[%emt 0:01:18][%cal Ra1c1]} (45... Kf8 $2 46. Rf3+ Ke8 47. Qg6+ Kd7 48. Rf7+ $18) 46. Rf3+ {[%emt 0:01:03]} Ke6 {[%emt 0:01:50][%cal Ra1c1]} 47. Qg8+ {[%emt 0:15:08]} Kd6 {[%emt 0:01:26][%cal Ra1c1]} 48. Qd8+ $1 {[%emt 0:03:02]} (48. Qxc4 $2 {too greedy.} Rxc1+ $19) 48... Ke5 {[%emt 0:15:58][%cal Ra1c1]} (48... Kc6 $5 49. Qb6+ $8 Kd7 50. Qb7+ Ke8 $11) 49. Qb6 $2 {[%emt 0:01:26][%mdl 8192]} Qc7 $4 {[%emt 0:00:03][%mdl 8192]} 50. Qd6+ $4 {[%emt 0:00:06][%mdl 40960] Never resign too early!   Weighted Error Value: White=0.51/Black=0.43. An unexpected result.} (50. Qxc7+ {is the narrow road to win.} Kd5 {[#]} 51. g4 $1 Rxc1+ 52. Kg2 Rc2 53. Qxg7 Kc5 54. Qe7+ Kc4 55. Qd7) 1/2-1/2